[Event "5th Sharjah Masters 2022"]
[Site "Sharjah"]
[Date "2022.05.22"]
[Round "2.33"]
[White "Injac, Teodora"]
[Black "Kuybokarov, Temur"]
[Result "0-1"]
[ECO "E62"]
[WhiteElo "2384"]
[BlackElo "2582"]
[Annotator "TA"]
[PlyCount "104"]
[EventDate "2022.05.21"]
[EventType "swiss"]
[EventCountry "UAE"]
[SourceTitle "playchess.com"]
[Source "ChessBase"]
[SourceQuality "1"]
[TimeControl "5400+30"]

{[%evp 18,104,20,18,23,0,0,0,0,0,100,93,99,81,104,94,95,82,109,80,73,82,78,63,65,35,85,45,58,32,52,0,78,40,43,0,77,0,181,73,222,155,164,0,76,63,103,53,91,64,79,77,133,83,161,172,133,194,157,0,0,-76,-66,-160,-167,-243,-263,-267,-269,-829,-409,-407,-429,-1164,-1123,-1509,-1524,-29983,-29984,-29984,-29985,-29985,-29986,-29986,-29987,-29987,-29988,-29988,-29989]} 1. d4 {[%emt 0:00:02] ChessBase II} Nf6 {[%emt 0:00:10]} 2. c4 {[%emt 0:00:13]} g6 {[%emt 0:00:06]} 3. Nf3 {[%emt 0:00:20]} Bg7 {[%emt 0:00:09]} 4. g3 {[%emt 0:00:22]} O-O {[%emt 0:00:11]} 5. Bg2 {[%emt 0:00:10]} d6 {[%emt 0:00:10]} 6. O-O {[%emt 0:00:40]} c6 {[%emt 0:00:14]} 7. Nc3 {[%emt 0:00:55]} Bf5 {[%emt 0:00:08]} 8. Re1 {[%emt 0:01:17]} Ne4 {[%emt 0:00:12]} 9. Qb3 {[%emt 0:00:54] 9.Qb3 is better than 9.Nxe4.} Nxc3 {[%emt 0:00:17]} 10. bxc3 {[%emt 0:00:12]} Bc8 {[%emt 0:00:10] E62: King's Indian: Fianchetto: 6...c6 and Panno Variation (6...Nc6) without ...a6.} 11. Ba3 {[%emt 0:05:00]} Nd7 {[%emt 0:05:34]} 12. e4 {[%emt 0:01:11]} c5 {[%emt 0:12:52] The position is equal.} 13. e5 {[%emt 0:02:35]} Qa5 {[%emt 0:07:36] [#]} (13... dxe5 $11 14. dxe5 e6) 14. e6 $146 {[%emt 0:21:02]} ({Predecessor:} 14. Rad1 Nb6 15. exd6 exd6 16. dxc5 dxc5 17. Ne5 Re8 18. f4 Bxe5 19. Rxe5 Rxe5 20. fxe5 {½-½ (29) Le Roux,J (2538)-L'Ami,A (2297) Aix les Bains 2011 CBM 142 Extra [ChessBase II]}) 14... fxe6 {[%emt 0:05:08]} 15. Ng5 {[%emt 0:00:51]} Nb6 {[%emt 0:03:25]} 16. Nxe6 {[%emt 0:06:37]} Bxe6 {[%emt 0:01:34]} 17. Rxe6 {[%emt 0:00:05]} Rf7 {[%emt 0:01:24]} 18. Rae1 {[%emt 0:16:41]} (18. Bxb7 Rb8 19. dxc5 Rxb7 $14) 18... Raf8 {[%emt 0:18:41]} 19. f4 {[%emt 0:08:30]} Bf6 {[%emt 0:05:40]} 20. Bb2 {[%emt 0:03:42]} Rc8 {[%emt 0:08:21]} 21. d5 {[%emt 0:06:54]} Na4 {[%emt 0:04:45]} ({Better is} 21... Rb8 $14) 22. R6e3 {[%emt 0:01:07]} ({And not} 22. Qxb7 Rc7 23. Qb8+ Rf8 $17) 22... Rb8 {[%emt 0:00:44]} 23. Bh3 {[%emt 0:01:21] Be6 is the strong threat.} Rff8 {[%emt 0:03:11]} 24. Bd7 {[%emt 0:03:25]} (24. Ba1 $14) 24... Nb6 {[%emt 0:03:36]} (24... b5 $11) 25. Bg4 {[%emt 0:00:36]} Na4 {[%emt 0:01:27]} 26. Bd7 {[%emt 0:00:05]} Nb6 {[%emt 0:00:59]} 27. Bg4 {[%emt 0:00:16]} (27. Be6+ $16 Kh8 28. Ba1) 27... a6 $2 {[%emt 0:01:48]} (27... Na4 $11) 28. Ba1 {[%emt 0:04:00]} (28. Be6+ $1 $18 {is the precise move to win.} Kg7 29. Ba1) 28... Na4 {[%emt 0:01:16]} (28... Kh8 $16 {keeps fighting.}) 29. Bd7 {[%emt 0:01:38]} Nb6 {[%emt 0:00:40]} 30. Bg4 {[%emt 0:00:04]} (30. Be6+ $18 Kg7 31. Bg4) 30... Na8 {[%emt 0:00:12]} (30... Na4 $1 $11 {remains equal.}) 31. h4 {[%emt 0:02:37]} Nc7 {[%emt 0:02:14]} 32. Qc2 {[%emt 0:00:23]} ({White should try} 32. h5 $16) 32... Rf7 {[%emt 0:01:53]} 33. Kg2 {[%emt 0:04:43]} b5 {[%emt 0:02:02]} 34. Be2 {[%emt 0:00:58]} Rb7 {[%emt 0:05:10]} ({Black should play} 34... Qa4 35. Qxa4 bxa4) 35. Bd3 {[%emt 0:01:01]} (35. h5 $142) 35... Kh8 {[%emt 0:00:36]} (35... Rb8 $16) 36. h5 $1 $18 {[%emt 0:01:46]} gxh5 {[%emt 0:00:36]} 37. Qe2 $1 {[%emt 0:02:26]} h4 {[%emt 0:00:54]} 38. Qh5 $2 {[%emt 0:00:38]} (38. g4 $1 $16 {[%cal Rg4g5]}) 38... Rg7 $11 {[%emt 0:00:26]} 39. Kh3 {[%emt 0:00:38]} (39. g4 $11 {keeps the balance.}) 39... bxc4 $17 {[%emt 0:00:26] Really sharp!} 40. Be4 {[%emt 0:00:33]} (40. Bxc4 $15 Rb8 41. g4) 40... Qxa2 {[%emt 0:01:23] Strongly threatening ...Qf2.} 41. g4 {[%emt 0:02:56]} (41. R3e2 $142 Qa4 42. g4) 41... Qf2 $1 $19 {[%emt 0:01:31]} 42. Qf5 {[%emt 0:00:11]} Rb8 {[%emt 0:00:25] Inhibits Qc8+. White must now prevent ...Rbg8.} 43. g5 $2 {[%emt 0:00:48] [#]} (43. Bg2 Rb1 44. R1e2 (44. Qxb1 $2 {is the wrong capture.} Rxg4 45. Qe4 Rxf4 $19)) 43... Rbg8 $1 {[%emt 0:01:30]} 44. R1e2 {[%emt 0:01:17]} Qf1+ {[%emt 0:00:09]} 45. Kxh4 {[%emt 0:00:40]} (45. Bg2 $142 Qxa1 46. Re1) 45... Rg6 {[%emt 0:01:57] aiming for ...Nxd5.} 46. Bb2 {[%emt 0:00:25]} Ne8 {[%emt 0:00:48][%cal Bc7e8,Be8g7,Bg7h5,Bh5f4][%mdl 32]} 47. Rg2 {[%emt 0:00:38]} Rh6+ {[%emt 0:00:23] Black mates.} 48. Kg3 {[%emt 0:00:20]} Ng7 {[%emt 0:00:10]} ({Stronger than} 48... Qh1 49. Kf2 $11) 49. Qg4 {[%emt 0:00:41]} Nh5+ {[%emt 0:00:07]} 50. Kh2 {[%emt 0:00:27]} Nxf4+ {[%emt 0:00:18]} 51. gxh6 {[%emt 0:00:11]} Rxg4 {[%emt 0:00:10]} 52. Rxg4 {[%emt 0:00:04]} Qf2+ {[%emt 0:00:06] Weighted Error Value: White=0.79/Black=0.39} 0-1

[Event "5th Sharjah Masters 2022"]
[Site "Sharjah"]
[Date "2022.05.22"]
[Round "2.34"]
[White "Sanal, Vahap"]
[Black "Erdogdu, Mert"]
[Result "1/2-1/2"]
[ECO "B52"]
[WhiteElo "2575"]
[BlackElo "2407"]
[Annotator "TA"]
[PlyCount "85"]
[EventDate "2022.05.21"]
[EventType "swiss"]
[EventCountry "UAE"]
[SourceTitle "playchess.com"]
[Source "ChessBase"]
[SourceQuality "1"]
[TimeControl "5400+30"]

{[%evp 25,85,28,41,29,31,22,27,24,29,25,33,25,44,47,60,56,49,45,68,52,65,65,65,65,76,71,75,48,50,51,47,50,62,44,51,17,45,0,0,0,0,0,0,0,0,0,0,-63,0,0,0,0,0,-29,0,0,0,0,0,0,0,-26]} 1. e4 {[%emt 0:00:03]} c5 {[%emt 0:00:04]} 2. Nf3 {[%emt 0:00:07]} d6 {[%emt 0:00:28]} 3. Bb5+ {[%emt 0:00:09]} Bd7 {[%emt 0:00:30]} 4. Bxd7+ {[%emt 0:00:18]} Qxd7 {[%emt 0:00:07]} 5. c4 {[%emt 0:00:36]} Nf6 {[%emt 0:00:47]} 6. Nc3 {[%emt 0:00:09]} g6 {[%emt 0:00:58]} 7. d4 {[%emt 0:00:11]} cxd4 {[%emt 0:00:07]} 8. Nxd4 {[%emt 0:00:06]} Bg7 {[%emt 0:00:10]} 9. f3 {[%emt 0:00:12]} O-O {[%emt 0:01:02]} 10. Be3 {[%emt 0:00:13]} Nc6 {[%emt 0:00:58]} 11. O-O {[%emt 0:00:23]} Rfc8 {[%emt 0:01:30]} 12. b3 {[%emt 0:10:41]} Qd8 {[%emt 0:04:44]} 13. Qd2 {[%emt 0:05:34]} Qa5 {[%emt 0:00:22]} 14. Rac1 {[%emt 0:00:38] B52: Sicilian: Moscow Variation with 3...Bd7.} a6 {[%emt 0:01:51]} 15. Nxc6 {[%emt 0:10:05]} Rxc6 {[%emt 0:02:58] [#]} 16. a4 $146 {[%emt 0:01:06] White has an edge.} ({Predecessor:} 16. Nd5 Qxd2 17. Bxd2 Nxd5 18. cxd5 Bd4+ 19. Kh1 Rcc8 20. Rxc8+ Rxc8 21. Rc1 {½-½ (21) Gorodetzky,D (2495)-Mikhalevski,V (2552) Jerusalem 2021}) 16... Re8 {[%emt 0:21:00]} 17. Rc2 {[%emt 0:12:07]} Nd7 {[%emt 0:06:40]} 18. Rb1 {[%emt 0:08:39]} Qd8 {[%emt 0:16:58]} 19. Nd5 {[%emt 0:02:13]} a5 {[%emt 0:01:22]} 20. Nc3 {[%emt 0:01:30]} Nc5 {[%emt 0:00:51]} 21. Nb5 {[%emt 0:00:43]} Be5 {[%emt 0:06:44]} 22. Qd1 {[%emt 0:02:38]} Qb8 {[%emt 0:01:40]} 23. f4 {[%emt 0:03:02]} Bg7 {[%emt 0:00:14]} 24. Qf3 {[%emt 0:00:27]} Rcc8 {[%emt 0:02:30]} 25. Rd2 {[%emt 0:00:45]} b6 {[%emt 0:00:18]} 26. Bd4 {[%emt 0:08:53]} Qb7 {[%emt 0:05:52]} 27. Bxg7 {[%emt 0:00:35]} Kxg7 {[%emt 0:00:02]} 28. Re1 {[%emt 0:01:54]} Kg8 {[%emt 0:02:12]} 29. g4 {[%emt 0:03:04] Against f5. White is more active.} Rf8 {[%emt 0:04:13]} 30. f5 {[%emt 0:02:27]} f6 {[%emt 0:04:00]} 31. h4 {[%emt 0:01:36]} gxf5 {[%emt 0:02:16]} 32. gxf5 {[%emt 0:01:55]} Kh8 {[%emt 0:00:44]} 33. Rg2 {[%emt 0:14:44]} Rg8 {[%emt 0:04:01]} 34. Ree2 {[%emt 0:00:00]} Qa8 {[%emt 0:00:00]} 35. Nd4 {[%emt 0:08:42]} Rxg2+ {[%emt 0:01:56]} 36. Rxg2 {[%emt 0:00:38]} ({White should play} 36. Kxg2 $11 Rg8+ 37. Kh3) 36... Rg8 {[%emt 0:05:11]} ({Black should try} 36... Qxe4 $15 37. Qxe4 Nxe4) 37. Rxg8+ $11 {[%emt 0:00:15]} Qxg8+ {[%emt 0:00:16][%mdl 4096] Endgame KQN-KQN} 38. Kf2 {[%emt 0:00:02]} Qg7 {[%emt 0:01:17]} 39. Ne6 {[%emt 0:01:38]} Nxe6 {[%emt 0:00:57]} 40. fxe6 {[%emt 0:00:02] The position is equal.} Qh6 {[%emt 0:00:28]} 41. Kg3 {[%emt 0:00:40]} Qd2 {[%emt 0:00:47]} 42. Kh3 {[%emt 0:00:34]} Qd4 {[%emt 0:00:57]} 43. h5 {[%emt 0:00:54] Weighted Error Value: White=0.12 (very precise) /Black=0.10 (very precise)} 1/2-1/2

[Event "5th Sharjah Masters 2022"]
[Site "Sharjah"]
[Date "2022.05.22"]
[Round "2.35"]
[White "Mastrovasilis, Athanasios"]
[Black "Saeed, Ishaq"]
[Result "1-0"]
[ECO "A59"]
[WhiteElo "2540"]
[BlackElo "2397"]
[Annotator "TA"]
[PlyCount "115"]
[EventDate "2022.05.21"]
[EventType "swiss"]
[EventCountry "UAE"]
[SourceTitle "playchess.com"]
[Source "ChessBase"]
[SourceQuality "1"]
[TimeControl "5400+30"]

{[%evp 21,115,64,83,85,69,50,93,86,79,63,79,81,79,88,72,85,133,77,77,72,75,53,55,38,39,10,291,18,20,18,11,8,12,13,290,258,284,0,963,880,29978,29979,29987,29970,29967,29967,29993,5097,5085,5097,3885,1813,1030,196,196,196,196,196,196,196,380,369,911,890,865,752,2008,1926,1652,1344,29983,29984,29984,29985,29985,29986,29986,29987,29987,29988,29988,29989,29992,29988,29989,29989,29989,29990,29990,29991,29991,29992,29992,29993,29993,1018]} 1. d4 {[%emt 0:00:15]} Nf6 {[%emt 0:00:38]} 2. c4 {[%emt 0:00:19]} c5 {[%emt 0:00:37]} 3. d5 {[%emt 0:00:35]} b5 {[%emt 0:00:34]} 4. cxb5 {[%emt 0:00:10]} a6 {[%emt 0:00:22]} 5. bxa6 {[%emt 0:00:37]} g6 {[%emt 0:00:27]} 6. Nc3 {[%emt 0:00:12]} Bxa6 {[%emt 0:00:19]} 7. Nf3 {[%emt 0:00:21]} d6 {[%emt 0:00:35]} 8. e4 {[%emt 0:00:45]} Bxf1 {[%emt 0:00:16]} 9. Kxf1 {[%emt 0:00:05]} Bg7 {[%emt 0:01:03]} 10. g3 {[%emt 0:00:14]} O-O {[%emt 0:00:25]} 11. Kg2 {[%emt 0:00:07]} Nbd7 {[%emt 0:00:21]} 12. a4 {[%emt 0:00:53] The modern move. A59: Benko/Volga Gambit: White castles by hand.} Qb6 {[%emt 0:02:30]} 13. Re1 {[%emt 0:13:09]} Ng4 {[%emt 0:04:29]} 14. Nb5 {[%emt 0:21:30] White is better.} c4 {[%emt 0:28:10] [#]} 15. Re2 $146 {[%emt 0:22:57]} ({Predecessor:} 15. Qc2 Nc5 16. h3 Nf6 17. Be3 Nfxe4 18. Qxe4 Qxb5 19. Qxe7 Nxa4 20. Qxd6 Rfd8 21. Qc6 Qxd5 22. Qxd5 Rxd5 {½-½ (29) Tupet,G (1931)-Verschraegen,T (1752) Lille 2015}) 15... f5 {[%emt 0:12:54] White must now prevent ...fxe4.} 16. Qc2 {[%emt 0:02:19]} fxe4 {[%emt 0:09:45]} 17. Qxe4 {[%emt 0:03:23]} Nde5 {[%emt 0:00:08]} 18. Ra3 {[%emt 0:13:39]} Qc5 {[%emt 0:23:10]} (18... Nf6 $142 19. Qc2 Qb7) 19. Be3 {[%emt 0:04:42]} (19. Bg5 $142 $1 {[%cal Rg5e7]} Rf7 20. Qd4) 19... Nxe3+ $16 {[%emt 0:06:42]} 20. Raxe3 {[%emt 0:00:11] Hoping for Ng5.} ({Don't play} 20. Rexe3 $6 Nxf3 21. Rxf3 Bxb2 22. Qe6+ Kh8 $11) 20... Rxa4 {[%emt 0:04:12]} 21. Nc3 {[%emt 0:02:22]} Rb4 {[%emt 0:01:49]} 22. Ng5 {[%emt 0:00:27] Strongly threatening f4.} Qb6 {[%emt 0:01:32]} 23. f4 {[%emt 0:05:50]} Bh6 $2 {[%emt 0:00:15][%mdl 8192] [#]} (23... Nf7 $1 $11) 24. Ne6 $2 $40 {[%emt 0:01:29][%mdl 128] White attacks.} (24. h4 $1 $18) 24... Ng4 $11 {[%emt 0:00:16]} 25. Nxf8 {[%emt 0:02:36] Pair of Knights!} Nxe3+ {[%emt 0:00:12]} 26. Rxe3 {[%emt 0:00:20]} Bxf8 {[%emt 0:00:54]} (26... Rxb2+ $2 27. Kh3 (27. Re2 Bxf8 28. Qxc4 Qb3 $11) 27... Bxf8 28. Na4 $18) 27. Kh3 {[%emt 0:03:17] With the idea Qe6+.} Qb7 $2 {[%emt 0:00:54][%mdl 8192] [#]} (27... Rxb2 $2 28. Na4 Qb8 29. Nxb2 Qxb2 30. Qxc4 $18) (27... Qc5 $11 {and Black stays safe.}) 28. Qe6+ $1 $18 {[%emt 0:00:21]} Kg7 {[%emt 0:00:11]} 29. Ne4 $2 {[%emt 0:00:51]} (29. f5 $18 {fxg6 would kill now.} g5 30. Re4) 29... h6 $2 {[%emt 0:00:05][%mdl 8192]} (29... Rb5 $11) 30. f5 {[%emt 0:00:15]} gxf5 {[%emt 0:01:01] [#]} 31. Rf3 $1 {[%emt 0:00:27]} Kh8 {[%emt 0:00:43]} (31... Qb8 32. Rxf5) 32. Rxf5 {[%emt 0:00:23]} Bg7 {[%emt 0:00:07]} 33. Rf7 {[%emt 0:00:42]} Rb5 {[%emt 0:00:31]} 34. Nc3 {[%emt 0:00:49]} (34. Qg4 $142 Qd7 35. Qxd7 Rxd5 36. Qg4 Rg5 37. Nxg5 e6 38. Nxe6 Bxb2 39. Rf8+ Kh7 40. Qg8#) 34... Rxb2 {[%emt 0:00:49]} 35. Rxe7 {[%emt 0:00:16]} Qxe7 {[%emt 0:00:31]} 36. Qxe7 {[%emt 0:00:05]} Bxc3 {[%emt 0:00:04][%mdl 4096] Endgame KQ-KRB} 37. Qe8+ $2 {[%emt 0:01:15]} (37. Qxd6 Kg7 38. Qe7+ Kg8 39. Qe6+ Kg7 40. Qg4+ Kh7 41. Qe4+ Kg7 42. Qg4+ Kh7 43. Qd7+ Kg6 44. Qg4+ Kf7 45. Qxc4) 37... Kh7 {[%emt 0:00:32]} 38. Qe4+ {[%emt 0:00:28]} Kh8 {[%emt 0:00:39]} 39. Qxc4 {[%emt 0:00:20]} Be5 {[%emt 0:00:23]} 40. Qc7 {[%emt 0:00:23]} Rf2 $2 {[%emt 0:00:51]} (40... Kg8 41. Qc8+ Kh7 42. Qf5+ Kg7 43. Qg4+ Kh7) 41. Qe7 {[%emt 0:00:17] Threatens to win with Kg4.} Rf6 $2 {[%emt 0:00:30]} (41... Rf5 42. Qe6 Rf6) 42. Kg4 {[%emt 0:00:22]} Kg8 {[%emt 0:00:32]} 43. Kh5 {[%emt 0:00:24]} Kh8 {[%emt 0:00:26]} 44. g4 {[%emt 0:00:31]} Kg8 {[%emt 0:00:26]} 45. h4 {[%emt 0:00:17][%cal Bh2h4,Bh4g5][%mdl 32]} Bd4 {[%emt 0:00:39]} 46. g5 {[%emt 0:00:30] White mates.} hxg5 {[%emt 0:00:15]} 47. hxg5 {[%emt 0:00:04]} Rf7 {[%emt 0:00:44]} 48. Qxd6 {[%emt 0:00:25]} Rh7+ {[%emt 0:00:24]} 49. Kg4 {[%emt 0:00:22]} Rf7 {[%emt 0:00:31]} 50. Qe6 {[%emt 0:00:33]} Kg7 {[%emt 0:00:34]} 51. d6 {[%emt 0:00:27]} Bb6 {[%emt 0:00:30]} 52. Qe8 {[%emt 0:00:52]} Rf8 {[%emt 0:00:19]} 53. Qe5+ {[%emt 0:00:19]} Kg6 {[%emt 0:00:40]} 54. Qe6+ {[%emt 0:00:14]} Kg7 {[%emt 0:00:05]} 55. Qh6+ {[%emt 0:00:26]} Kf7 {[%emt 0:00:50]} 56. g6+ {[%emt 0:00:52]} Ke8 {[%emt 0:00:10]} 57. g7 {[%emt 0:00:10]} Rg8 {[%emt 0:00:13]} 58. Qe6+ {[%emt 0:00:06] Weighted Error Value: White=0.43/Black=0.62} 1-0

[Event "5th Sharjah Masters 2022"]
[Site "Sharjah"]
[Date "2022.05.22"]
[Round "2.36"]
[White "Sankalp Gupta"]
[Black "Begmuratov, Khumoyun"]
[Result "1-0"]
[ECO "D38"]
[WhiteElo "2505"]
[BlackElo "2384"]
[Annotator "TA"]
[PlyCount "99"]
[EventDate "2022.05.21"]
[EventType "swiss"]
[EventCountry "UAE"]
[SourceTitle "playchess.com"]
[Source "ChessBase"]
[SourceQuality "1"]
[TimeControl "5400+30"]

{[%evp 12,99,15,20,17,19,18,16,29,22,14,0,15,0,18,6,55,54,56,56,56,60,64,56,60,50,52,56,56,54,59,56,77,83,78,88,83,68,100,85,82,87,83,83,77,82,87,83,91,86,154,150,238,227,304,282,347,335,333,305,405,396,380,392,390,329,414,414,406,406,400,405,403,388,898,898,1019,1031,1182,1158,1082,1102,2360,1987,29968,8411,29974,29975,29985,29986]} 1. d4 {[%emt 0:00:23]} Nf6 {[%emt 0:00:26]} 2. c4 {[%emt 0:00:03]} e6 {[%emt 0:00:44]} 3. Nf3 {[%emt 0:00:09]} d5 {[%emt 0:00:23]} 4. Nc3 {[%emt 0:00:03]} Bb4 {[%emt 0:02:13]} 5. Qa4+ {[%emt 0:00:52]} Nc6 {[%emt 0:00:09]} 6. e3 {[%emt 0:00:11]} O-O {[%emt 0:09:22]} 7. Bd2 {[%emt 0:00:17]} Bd7 {[%emt 0:06:29][%cal Oc6d4] [#] ...Nxd4! is the strong threat. D38: Queen's Gambit Declined: Ragozin Defence (4 Nf3 Bb4).} 8. Qc2 {[%emt 0:01:03]} dxc4 {[%emt 0:05:05]} 9. Bxc4 {[%emt 0:00:42]} Bd6 {[%emt 0:04:03] The position is equal.} 10. e4 {[%emt 0:06:22] And now e5 would win.} e5 $1 {[%emt 0:01:18]} 11. dxe5 {[%emt 0:00:35]} Nxe5 {[%emt 0:23:37]} 12. Nxe5 {[%emt 0:02:51]} Bxe5 {[%emt 0:00:01]} 13. O-O-O {[%emt 0:00:34] [#]} b5 $146 {[%emt 0:05:36]} (13... c5 $11) ({Predecessor:} 13... Qe7 14. f4 Bxc3 15. Bxc3 Bg4 16. Rde1 Be6 17. e5 Nd7 18. Bd3 g6 19. Kb1 Nb6 {1-0 (29) Storme,I (2270)-Sjodahl,P (2429) Norrkoeping 2019}) 14. Bxb5 $14 {[%emt 0:07:47]} Bxb5 {[%emt 0:03:54]} 15. Nxb5 {[%emt 0:00:03]} Qe8 {[%emt 0:01:09]} 16. Nc3 {[%emt 0:04:50]} ({Don't go for} 16. Nxc7 $2 Bxc7 17. f3 (17. Qxc7 $2 Rc8 $19) 17... Be5 $19) 16... Bxc3 {[%emt 0:06:03]} 17. Bxc3 {[%emt 0:00:41]} Qxe4 {[%emt 0:00:05]} 18. Rhe1 {[%emt 0:00:15]} Qf4+ {[%emt 0:02:52]} 19. Qd2 {[%emt 0:00:22]} Qc4 {[%emt 0:01:15]} 20. b3 {[%emt 0:04:57]} Qc6 {[%emt 0:01:38]} 21. Qd4 {[%emt 0:00:44] Prevents Ne4.} a5 {[%emt 0:05:49] [#]} 22. Qc4 $1 {[%emt 0:04:34]} Qxc4 {[%emt 0:01:47]} (22... Qxg2 $2 23. Bxf6 Qxf2 24. Bc3 $18) 23. bxc4 {[%emt 0:00:02]} Ra6 {[%emt 0:00:29]} 24. Re5 {[%emt 0:05:47]} a4 {[%emt 0:01:32]} 25. f3 {[%emt 0:58:53]} Rfa8 {[%emt 0:03:09]} 26. Rc5 {[%emt 0:00:00]} Ne8 {[%emt 0:00:34]} 27. Kb2 {[%emt 0:00:00]} h6 {[%emt 0:04:28]} 28. Ka3 {[%emt 0:00:00]} Re6 {[%emt 0:00:36]} 29. Re1 {[%emt 0:00:00]} Rea6 {[%emt 0:01:31]} 30. Bb4 $36 {[%emt 0:00:00][%mdl 2048] Keeping Black busy. White is much more active.} Rb6 {[%emt 0:03:11]} (30... g6 $142) 31. Ra5 $16 {[%emt 0:00:00]} Rab8 {[%emt 0:00:30]} (31... Rc8 $16) 32. Rb5 $1 $18 {[%emt 0:00:00]} ({Weaker is} 32. Rxa4 Nd6 $14) 32... Rxb5 {[%emt 0:02:43]} 33. cxb5 {[%emt 0:00:00][%mdl 4096] Endgame KRB-KRN} Nf6 {[%emt 0:00:20]} 34. Kxa4 {[%emt 0:00:00]} Nd5 {[%emt 0:00:03][%cal Oc7c6]} 35. a3 {[%emt 0:00:00][%cal Ba2a3,Ba3a4,Ba4b5][%mdl 32]} Ra8+ {[%emt 0:01:40]} 36. Kb3 {[%emt 0:05:30]} Rb8 37. a4 {[%emt 0:00:00]} c6 {[%emt 0:00:07]} 38. Bd6 {[%emt 0:00:00]} Rb7 {[%emt 0:01:54]} 39. Kc4 {[%emt 0:00:00]} Nb6+ {[%emt 0:00:22]} 40. Kd4 {[%emt 0:00:00]} ({Worse is} 40. Kc5 Nxa4+ 41. Kxc6 Rb6+ 42. Kc7 Rxb5 $11) 40... cxb5 {[%emt 0:00:30]} 41. axb5 {[%emt 0:00:00] Strongly threatening Re8+.} Nd7 {[%emt 0:02:30]} 42. Rb1 {[%emt 0:00:00]} Nb6 $2 {[%emt 0:00:40]} (42... Rb6) 43. Kc5 {[%emt 0:00:00]} Na4+ {[%emt 0:00:18]} 44. Kc6 {[%emt 0:00:00]} Rb6+ {[%emt 0:00:01]} 45. Kc7 {[%emt 0:00:00]} f6 {[%emt 0:00:27]} 46. Rb4 {[%emt 0:00:00] Threatens to win with Bc5.} Kf7 {[%emt 0:00:04]} 47. Bc5 {[%emt 0:00:00]} Nxc5 {[%emt 0:00:19]} 48. Kxb6 {[%emt 0:00:00]} Nd3 {[%emt 0:00:12]} 49. Rd4 {[%emt 0:00:00]} Ne5 {[%emt 0:00:08]} 50. Kc7 {[%emt 0:00:00] Weighted Error Value: White=0.03 (flawless) /Black=0.45} 1-0

[Event "5th Sharjah Masters 2022"]
[Site "Sharjah"]
[Date "2022.05.22"]
[Round "2.37"]
[White "Aziz, Husain"]
[Black "Gharibyan, Mamikon"]
[Result "1-0"]
[ECO "D38"]
[WhiteElo "2379"]
[BlackElo "2487"]
[Annotator "TA"]
[PlyCount "49"]
[EventDate "2022.05.21"]
[EventType "swiss"]
[EventCountry "UAE"]
[SourceTitle "playchess.com"]
[Source "ChessBase"]
[SourceQuality "1"]
[TimeControl "5400+30"]

{[%evp 9,49,6,39,34,20,25,27,20,33,25,40,35,29,43,79,77,83,95,92,93,95,92,85,93,102,84,164,183,185,166,179,170,166,152,228,279,29975,29976,29974,29976,5493,5485]} 1. Nf3 {[%emt 1:31:00]} d5 {[%emt 1:31:00]} 2. d4 {[%emt 0:00:30]} Nf6 {[%emt 0:00:30]} 3. c4 {[%emt 0:00:30]} e6 {[%emt 0:00:30]} 4. Nc3 {[%emt 0:00:30]} Bb4 {[%emt 0:00:30]} 5. Qb3 {[%emt 0:00:30]} a5 {[%emt 0:00:30]} 6. Bg5 {[%emt 0:00:30] D38: Queen's Gambit Declined: Ragozin Defence (4 Nf3 Bb4).} c5 {[%emt 0:00:30] is now more promising than 6...c6.} 7. a3 {[%emt 0:00:30]} a4 {[%emt 0:00:30]} 8. Qc2 {[%emt 0:00:30] White has an edge.} Bxc3+ {[%emt 0:00:30] [#]} 9. bxc3 $146 {[%emt 0:00:30]} ({Predecessor:} 9. Qxc3 Nc6 10. cxd5 cxd4 11. Nxd4 Nxd5 12. Qxc6+ bxc6 13. Bxd8 Kxd8 14. Nxc6+ Kd7 15. Ne5+ {0-1 (91) Nesterov,A (2482)-Bluebaum,M (2670) Chess.com INT 2021}) 9... dxc4 {[%emt 0:00:30]} 10. e4 {[%emt 0:00:30][%cal Be2e4,Be4e5,Be5f6,Bf6g7][%mdl 32]} (10. dxc5 Qd5 $11) 10... cxd4 {[%emt 0:00:30]} 11. cxd4 {[%emt 0:00:30]} b5 {[%emt 0:00:30]} 12. e5 {[%emt 0:00:30]} h6 {[%emt 0:00:30]} (12... Qa5+ $2 13. Bd2 Qa6 14. exf6 gxf6 15. Rb1 $18) 13. exf6 {[%emt 0:00:30]} hxg5 {[%emt 0:00:30]} 14. fxg7 {[%emt 0:00:30]} Rg8 {[%emt 0:00:30]} 15. Qh7 {[%emt 0:00:30]} Ke7 {[%emt 0:00:30]} 16. Be2 {[%emt 0:00:30] Threatens to win with 0-0.} (16. Nxg5 $6 Bb7 17. Be2 Qa5+ 18. Kf1 Nd7 $11) 16... Nd7 {[%emt 0:00:30]} 17. O-O $1 {[%emt 0:00:30] Ne5 is the strong threat. White is more active.} ({Reject} 17. Nxg5 Qa5+ 18. Kf1 Bb7 $15) 17... Nf6 {[%emt 0:00:30]} (17... Bb7 $16 {might work better.}) 18. Qh6 $1 $36 {[%emt 0:00:30][%mdl 2048] aiming for Rab1. Keeping Black busy.} g4 {[%emt 0:00:30]} 19. Ne5 {[%emt 0:00:30] Strongly threatening Nc6+.} Bb7 {[%emt 0:00:30] Prevents Nc6+. And now ...Qd5 would win.} 20. Bxg4 {[%emt 0:00:30] Black must now prevent Qg5.} ({Resist} 20. Nxg4 $6 Nxg4 21. Bxg4 Qxd4 22. Qg5+ f6 23. Qxb5 Qd5 24. Qb4+ Kf7 $16) 20... Qxd4 {[%emt 0:00:30] [#]} 21. Qg5 {[%emt 0:00:30] Hoping for Rfe1.} Rad8 {[%emt 0:00:30] [#]} (21... Rac8 $16) 22. Rad1 $1 {[%emt 0:00:30] Really sharp!} Qc3 {[%emt 0:00:30] [#]} (22... Rxg7 $18 23. Qxg7 Qxe5) 23. Nc6+ $1 {[%emt 0:00:30][%mdl 512]} Bxc6 {[%emt 0:00:30]} 24. Qc5+ {[%emt 0:00:30]} Ke8 {[%emt 0:00:30]} 25. Qxc6+ {[%emt 0:00:30] Weighted Error Value: White=0.00 (flawless) /Black=0.42} 1-0